Department,Entity, Transaction Date, Expense Type, Expense Area, Supplier Name,Transaction number, Amount
FCDO,CSC,04/09/2023,Tuition Fee,Award Costs,Cardiff University,PRF000289,-6560
FCDO,CSC,01/09/2023,Award Support Costs,Award Costs,Cardiff University,PIN064949,6400
FCDO,CSC,01/09/2023,Tuition Fee,Award Costs,Cardiff University,PIN064949,18000
FCDO,CSC,01/09/2023,Award Support Costs,Award Costs,The University of Birmingham,PIN064950,5000
FCDO,CSC,01/09/2023,Scholar Allowances,Award Costs,Scholar,PIN064956,588.85
FCDO,CSC,01/09/2023,Scholar Allowances,Award Costs,Scholar,PIN064957,500
FCDO,CSC,01/09/2023,Scholar Stipend,Award Costs,Scholar,PIN064961,791.85
FCDO,CSC,01/09/2023,Scholar Allowances,Award Costs,Scholar,PIN064963,148.57
FCDO,CSC,01/09/2023,Scholar Allowances,Award Costs,Scholar,PIN064963,148.57
FCDO,CSC,01/09/2023,Scholar Stipend,Award Costs,Scholar,PIN064963,1170.46
FCDO,CSC,01/09/2023,Scholar Stipend,Award Costs,Scholar,PIN064964,1236
FCDO,CSC,01/09/2023,Scholar Allowances,Award Costs,Scholar,PIN064965,275
FCDO,CSC,01/09/2023,Scholar Stipend,Award Costs,Scholar,PIN064965,1045.94
FCDO,CSC,01/09/2023,Scholar Allowances,Award Costs,Scholar,PIN064966,250
FCDO,CSC,01/09/2023,Scholar Stipend,Award Costs,Scholar,PIN064966,1236
FCDO,CSC,01/09/2023,Interview Costs,Programme Costs,Way With Words Group,PIN064968,960.39
FCDO,CSC,01/09/2023,Alumni Engagement,Programme Costs,TFW Printers,PIN064969,996
FCDO,CSC,04/09/2023,Secretariat Service Provision,Programme Costs,Scholar,NOM001286,1932.79
FCDO,CSC,06/09/2023,Alumni Engagement,Programme Costs,Association of Commonwealth Univs,PIN064973,12
FCDO,CSC,06/09/2023,Alumni Engagement,Programme Costs,Association of Commonwealth Univs,PIN064973,1034.55
FCDO,CSC,07/09/2023,Cash Card Transfers,Award Costs,Scholar,PIN064988,4469.61
FCDO,CSC,08/09/2023,Scholar Allowances,Award Costs,Scholar,PIN064977,600
FCDO,CSC,08/09/2023,Scholar Allowances,Award Costs,Scholar,PIN064980,794
FCDO,CSC,08/09/2023,Scholar Allowances,Award Costs,Scholar,PIN064980,532
FCDO,CSC,08/09/2023,Scholar Allowances,Award Costs,Scholar,PIN064981,600
FCDO,CSC,08/09/2023,Scholar Allowances,Award Costs,Scholar,PIN064986,350
FCDO,CSC,08/09/2023,Scholar Stipend,Award Costs,Scholar,PIN064986,996.13
FCDO,CSC,08/09/2023,Cash Card Transfers,Award Costs,Scholar,PIN065560,-489.57
FCDO,CSC,08/09/2023,Cash Card Transfers,Award Costs,Scholar,PIN065560,-4469.61
FCDO,CSC,11/09/2023,Scholar Stipend,Award Costs,Scholar,PIN064989,814.18
FCDO,CSC,11/09/2023,Scholar Stipend,Award Costs,Scholar,PIN064990,1145.56
FCDO,CSC,11/09/2023,Scholar Allowances,Award Costs,Scholar,PIN065559,600
FCDO,CSC,11/09/2023,Bank Charges,Programme Costs,MasterCard Prepaid Management Services Ltd,PIN065559,6
FCDO,CSC,13/09/2023,Scholar Allowances,Award Costs,Scholar,PIN065561,522
FCDO,CSC,13/09/2023,Scholar Allowances,Award Costs,Scholar,PIN065561,522
FCDO,CSC,13/09/2023,Scholar Allowances,Award Costs,Scholar,PIN065561,522
FCDO,CSC,13/09/2023,Scholar Allowances,Award Costs,Scholar,PIN065561,522
FCDO,CSC,13/09/2023,Scholar Stipend,Award Costs,Scholar,PIN065561,5147.25
FCDO,CSC,13/09/2023,Scholar Stipend,Award Costs,Scholar,PIN065561,5014.5
FCDO,CSC,13/09/2023,Scholar Stipend,Award Costs,Scholar,PIN065561,4926
FCDO,CSC,13/09/2023,Scholar Stipend,Award Costs,Scholar,PIN065561,5191.5
FCDO,CSC,13/09/2023,Bank Charges,Programme Costs,MasterCard Prepaid Management Services Ltd,PIN065561,223.68
FCDO,CSC,13/09/2023,Tuition Fee,Award Costs,The University of Edinburgh,PRF000292,-354000
FCDO,CSC,14/09/2023,Scholar Allowances,Award Costs,Scholar,PIN065562,522
FCDO,CSC,14/09/2023,Scholar Allowances,Award Costs,Scholar,PIN065562,522
FCDO,CSC,14/09/2023,Scholar Allowances,Award Costs,Scholar,PIN065562,522
FCDO,CSC,14/09/2023,Scholar Allowances,Award Costs,Scholar,PIN065562,522
FCDO,CSC,14/09/2023,Scholar Allowances,Award Costs,Scholar,PIN065562,522
FCDO,CSC,14/09/2023,Scholar Stipend,Award Costs,Scholar,PIN065562,5661.64
FCDO,CSC,14/09/2023,Scholar Stipend,Award Costs,Scholar,PIN065562,4881.75
FCDO,CSC,14/09/2023,Scholar Stipend,Award Costs,Scholar,PIN065562,4926
FCDO,CSC,14/09/2023,Scholar Stipend,Award Costs,Scholar,PIN065562,4926
FCDO,CSC,14/09/2023,Scholar Stipend,Award Costs,Scholar,PIN065562,4926
FCDO,CSC,14/09/2023,Scholar Allowances,Award Costs,Scholar,PIN065562,522
FCDO,CSC,14/09/2023,Scholar Allowances,Award Costs,Scholar,PIN065562,522
FCDO,CSC,14/09/2023,Scholar Allowances,Award Costs,Scholar,PIN065562,522
FCDO,CSC,14/09/2023,Scholar Allowances,Award Costs,Scholar,PIN065562,522
FCDO,CSC,14/09/2023,Scholar Allowances,Award Costs,Scholar,PIN065562,522
FCDO,CSC,14/09/2023,Scholar Allowances,Award Costs,Scholar,PIN065562,522
FCDO,CSC,14/09/2023,Scholar Stipend,Award Costs,Scholar,PIN065562,5147.25
FCDO,CSC,14/09/2023,Scholar Stipend,Award Costs,Scholar,PIN065562,4616.25
FCDO,CSC,14/09/2023,Scholar Stipend,Award Costs,Scholar,PIN065562,4926
FCDO,CSC,14/09/2023,Scholar Stipend,Award Costs,Scholar,PIN065562,4926
FCDO,CSC,14/09/2023,Scholar Stipend,Award Costs,Scholar,PIN065562,4881.75
FCDO,CSC,14/09/2023,Scholar Stipend,Award Costs,Scholar,PIN065562,4926
FCDO,CSC,14/09/2023,Bank Charges,Programme Costs,MasterCard Prepaid Management Services Ltd,PIN065562,604.87
FCDO,CSC,15/09/2023,Scholar Allowances,Award Costs,Scholar,PIN064991,600
FCDO,CSC,15/09/2023,Scholar Allowances,Award Costs,Scholar,PIN064993,600
FCDO,CSC,15/09/2023,Scholar Allowances,Award Costs,Scholar,PIN064997,600
FCDO,CSC,15/09/2023,Tuition Fee,Award Costs,University of Strathclyde,PIN065000,4900
FCDO,CSC,15/09/2023,Tuition Fee,Award Costs,University of Strathclyde,PIN065001,4900
FCDO,CSC,15/09/2023,Tuition Fee,Award Costs,University of Strathclyde,PIN065002,4900
FCDO,CSC,15/09/2023,Tuition Fee,Award Costs,University of Strathclyde,PIN065003,4900
FCDO,CSC,15/09/2023,Tuition Fee,Award Costs,University of Strathclyde,PIN065004,4900
FCDO,CSC,15/09/2023,Tuition Fee,Award Costs,Loughborough University,PIN065005,1064.07
FCDO,CSC,15/09/2023,Engagement,Programme Costs,Scholar,PIN065006,1249.2
FCDO,CSC,15/09/2023,Scholar Travel,Award Costs,Diversity Travel,PIN065008,65.6
FCDO,CSC,15/09/2023,Scholar Travel,Award Costs,Diversity Travel,PIN065008,999.72
FCDO,CSC,15/09/2023,Scholar Travel,Award Costs,Diversity Travel,PIN065008,906.37
FCDO,CSC,15/09/2023,Scholar Travel,Award Costs,Diversity Travel,PIN065008,890.42
FCDO,CSC,15/09/2023,Scholar Travel,Award Costs,Diversity Travel,PIN065008,931.14
FCDO,CSC,15/09/2023,Scholar Travel,Award Costs,Diversity Travel,PIN065008,910.23
FCDO,CSC,15/09/2023,Scholar Travel,Award Costs,Diversity Travel,PIN065008,899.79
FCDO,CSC,15/09/2023,Scholar Travel,Award Costs,Diversity Travel,PIN065008,813.9
FCDO,CSC,15/09/2023,Scholar Travel,Award Costs,Diversity Travel,PIN065008,883.39
FCDO,CSC,15/09/2023,Scholar Travel,Award Costs,Diversity Travel,PIN065008,781.16
FCDO,CSC,15/09/2023,Fieldwork Airfare,Award Costs,Diversity Travel,PIN065008,1791.67
FCDO,CSC,15/09/2023,Scholar Travel,Award Costs,Diversity Travel,PIN065008,849.99
FCDO,CSC,15/09/2023,Scholar Travel,Award Costs,Diversity Travel,PIN065008,878.45
FCDO,CSC,15/09/2023,Scholar Travel,Award Costs,Diversity Travel,PIN065008,862.45
FCDO,CSC,15/09/2023,Scholar Travel,Award Costs,Diversity Travel,PIN065008,1333.71
FCDO,CSC,15/09/2023,Scholar Travel,Award Costs,Diversity Travel,PIN065008,996.11
FCDO,CSC,15/09/2023,Scholar Travel,Award Costs,Diversity Travel,PIN065008,960.27
FCDO,CSC,15/09/2023,Scholar Travel,Award Costs,Diversity Travel,PIN065008,805.11
FCDO,CSC,15/09/2023,Scholar Travel,Award Costs,Diversity Travel,PIN065008,25.5
FCDO,CSC,15/09/2023,Scholar Travel,Award Costs,Diversity Travel,PIN065008,892.69
FCDO,CSC,15/09/2023,Scholar Travel,Award Costs,Diversity Travel,PIN065008,998.47
FCDO,CSC,15/09/2023,Scholar Travel,Award Costs,Diversity Travel,PIN065008,844.51
FCDO,CSC,15/09/2023,Scholar Travel,Award Costs,Diversity Travel,PIN065008,949.06
FCDO,CSC,15/09/2023,Scholar Travel,Award Costs,Diversity Travel,PIN065008,693.51
FCDO,CSC,15/09/2023,Scholar Travel,Award Costs,Diversity Travel,PIN065008,690.78
FCDO,CSC,15/09/2023,Scholar Travel,Award Costs,Diversity Travel,PIN065008,966.35
FCDO,CSC,15/09/2023,Scholar Travel,Award Costs,Diversity Travel,PIN065008,860.35
FCDO,CSC,15/09/2023,Scholar Travel,Award Costs,Diversity Travel,PIN065008,992.32
FCDO,CSC,15/09/2023,Scholar Travel,Award Costs,Diversity Travel,PIN065008,823.69
FCDO,CSC,15/09/2023,Scholar Travel,Award Costs,Diversity Travel,PIN065008,892.79
FCDO,CSC,15/09/2023,Scholar Travel,Award Costs,Diversity Travel,PIN065008,850.81
FCDO,CSC,15/09/2023,Scholar Travel,Award Costs,Diversity Travel,PIN065008,473.8
FCDO,CSC,15/09/2023,Fieldwork Airfare,Award Costs,Diversity Travel,PIN065008,2135.8
FCDO,CSC,15/09/2023,Scholar Travel,Award Costs,Diversity Travel,PIN065008,1115.8
FCDO,CSC,15/09/2023,Fieldwork Airfare,Award Costs,Diversity Travel,PIN065008,1553.27
FCDO,CSC,15/09/2023,Scholar Travel,Award Costs,Diversity Travel,PIN065008,896.55
FCDO,CSC,15/09/2023,Scholar Travel,Award Costs,Diversity Travel,PIN065008,996.68
FCDO,CSC,15/09/2023,Scholar Travel,Award Costs,Diversity Travel,PIN065008,749.14
FCDO,CSC,15/09/2023,Scholar Travel,Award Costs,Diversity Travel,PIN065008,32.7
FCDO,CSC,15/09/2023,Scholar Travel,Award Costs,Diversity Travel,PIN065008,941.49
FCDO,CSC,15/09/2023,Scholar Travel,Award Costs,Diversity Travel,PIN065009,2199.48
FCDO,CSC,15/09/2023,Scholar Travel,Award Costs,Diversity Travel,PIN065009,720.96
FCDO,CSC,15/09/2023,Scholar Travel,Award Costs,Diversity Travel,PIN065009,909.42
FCDO,CSC,15/09/2023,Scholar Travel,Award Costs,Diversity Travel,PIN065009,848.04
FCDO,CSC,15/09/2023,Scholar Travel,Award Costs,Diversity Travel,PIN065009,899.4
FCDO,CSC,15/09/2023,Scholar Travel,Award Costs,Diversity Travel,PIN065009,898.37
FCDO,CSC,15/09/2023,Scholar Travel,Award Costs,Diversity Travel,PIN065009,783.38
FCDO,CSC,15/09/2023,Scholar Travel,Award Costs,Diversity Travel,PIN065009,890.38
FCDO,CSC,15/09/2023,Scholar Travel,Award Costs,Diversity Travel,PIN065009,979.89
FCDO,CSC,15/09/2023,Scholar Travel,Award Costs,Diversity Travel,PIN065009,883.27
FCDO,CSC,15/09/2023,Scholar Travel,Award Costs,Diversity Travel,PIN065009,663.35
FCDO,CSC,15/09/2023,Scholar Travel,Award Costs,Diversity Travel,PIN065009,859.61
FCDO,CSC,15/09/2023,Scholar Travel,Award Costs,Diversity Travel,PIN065009,880.71
FCDO,CSC,15/09/2023,Scholar Travel,Award Costs,Diversity Travel,PIN065009,904.4
FCDO,CSC,15/09/2023,Scholar Travel,Award Costs,Diversity Travel,PIN065009,1113.46
FCDO,CSC,15/09/2023,Scholar Travel,Award Costs,Diversity Travel,PIN065009,849.88
FCDO,CSC,15/09/2023,Scholar Travel,Award Costs,Diversity Travel,PIN065009,837.56
FCDO,CSC,15/09/2023,Scholar Travel,Award Costs,Diversity Travel,PIN065009,483.78
FCDO,CSC,15/09/2023,Scholar Travel,Award Costs,Diversity Travel,PIN065009,999.29
FCDO,CSC,15/09/2023,Scholar Travel,Award Costs,Diversity Travel,PIN065009,899.61
FCDO,CSC,15/09/2023,Scholar Travel,Award Costs,Diversity Travel,PIN065009,842.3
FCDO,CSC,15/09/2023,Scholar Travel,Award Costs,Diversity Travel,PIN065009,534
FCDO,CSC,15/09/2023,Fieldwork Airfare,Award Costs,Diversity Travel,PIN065009,1020.13
FCDO,CSC,15/09/2023,Scholar Travel,Award Costs,Diversity Travel,PIN065009,713.9
FCDO,CSC,15/09/2023,Scholar Travel,Award Costs,Diversity Travel,PIN065009,899.81
FCDO,CSC,15/09/2023,Scholar Travel,Award Costs,Diversity Travel,PIN065009,1099.67
FCDO,CSC,15/09/2023,Scholar Travel,Award Costs,Diversity Travel,PIN065009,734.48
FCDO,CSC,15/09/2023,Scholar Travel,Award Costs,Diversity Travel,PIN065009,847.71
FCDO,CSC,15/09/2023,Scholar Travel,Award Costs,Diversity Travel,PIN065009,874.18
FCDO,CSC,15/09/2023,Scholar Travel,Award Costs,Diversity Travel,PIN065009,880.88
FCDO,CSC,15/09/2023,Scholar Travel,Award Costs,Diversity Travel,PIN065009,1061.55
FCDO,CSC,15/09/2023,Scholar Travel,Award Costs,Diversity Travel,PIN065009,1101.09
FCDO,CSC,15/09/2023,Scholar Travel,Award Costs,Diversity Travel,PIN065009,999.5
FCDO,CSC,15/09/2023,Scholar Travel,Award Costs,Diversity Travel,PIN065009,999.74
FCDO,CSC,15/09/2023,Scholar Travel,Award Costs,Diversity Travel,PIN065009,996.47
FCDO,CSC,15/09/2023,Scholar Travel,Award Costs,Diversity Travel,PIN065009,960.55
FCDO,CSC,15/09/2023,Scholar Travel,Award Costs,Diversity Travel,PIN065009,778.99
FCDO,CSC,15/09/2023,Scholar Travel,Award Costs,Diversity Travel,PIN065009,1074.36
FCDO,CSC,15/09/2023,Scholar Travel,Award Costs,Diversity Travel,PIN065009,998.91
FCDO,CSC,15/09/2023,Scholar Travel,Award Costs,Diversity Travel,PIN065009,851.25
FCDO,CSC,15/09/2023,Scholar Travel,Award Costs,Diversity Travel,PIN065009,732.13
FCDO,CSC,15/09/2023,Scholar Travel,Award Costs,Diversity Travel,PIN065009,1000.76
FCDO,CSC,15/09/2023,Scholar Travel,Award Costs,Diversity Travel,PIN065009,911.19
FCDO,CSC,15/09/2023,Scholar Travel,Award Costs,Diversity Travel,PIN065009,1199.59
FCDO,CSC,15/09/2023,Scholar Travel,Award Costs,Diversity Travel,PIN065009,697.91
FCDO,CSC,15/09/2023,Scholar Travel,Award Costs,Diversity Travel,PIN065009,1305.72
FCDO,CSC,15/09/2023,Scholar Travel,Award Costs,Diversity Travel,PIN065009,849.2
FCDO,CSC,15/09/2023,Scholar Travel,Award Costs,Diversity Travel,PIN065009,894.2
FCDO,CSC,15/09/2023,Scholar Travel,Award Costs,Diversity Travel,PIN065009,1070.91
FCDO,CSC,15/09/2023,Scholar Travel,Award Costs,Diversity Travel,PIN065009,842.81
FCDO,CSC,15/09/2023,Scholar Travel,Award Costs,Diversity Travel,PIN065009,1498.36
FCDO,CSC,15/09/2023,Scholar Travel,Award Costs,Diversity Travel,PIN065009,899.24
FCDO,CSC,15/09/2023,Scholar Travel,Award Costs,Diversity Travel,PIN065009,977.84
FCDO,CSC,15/09/2023,Scholar Travel,Award Costs,Diversity Travel,PIN065009,681.68
FCDO,CSC,15/09/2023,Scholar Travel,Award Costs,Diversity Travel,PIN065009,884.48
FCDO,CSC,15/09/2023,Scholar Travel,Award Costs,Diversity Travel,PIN065009,1889.4
FCDO,CSC,15/09/2023,Scholar Travel,Award Costs,Diversity Travel,PIN065009,847.61
FCDO,CSC,15/09/2023,Scholar Travel,Award Costs,Diversity Travel,PIN065009,921.78
FCDO,CSC,15/09/2023,Fieldwork Airfare,Award Costs,Diversity Travel,PIN065009,1961.24
FCDO,CSC,15/09/2023,Scholar Travel,Award Costs,Diversity Travel,PIN065009,998.53
FCDO,CSC,15/09/2023,Scholar Travel,Award Costs,Diversity Travel,PIN065009,600.05
FCDO,CSC,15/09/2023,Scholar Travel,Award Costs,Diversity Travel,PIN065009,1027.35
FCDO,CSC,15/09/2023,Scholar Travel,Award Costs,Diversity Travel,PIN065009,766.35
FCDO,CSC,15/09/2023,Scholar Travel,Award Costs,Diversity Travel,PIN065009,905.64
FCDO,CSC,15/09/2023,Scholar Allowances,Award Costs,Scholar,PIN065010,600
FCDO,CSC,15/09/2023,Scholar Allowances,Award Costs,Scholar,PIN065563,522
FCDO,CSC,15/09/2023,Scholar Allowances,Award Costs,Scholar,PIN065563,522
FCDO,CSC,15/09/2023,Scholar Allowances,Award Costs,Scholar,PIN065563,522
FCDO,CSC,15/09/2023,Scholar Allowances,Award Costs,Scholar,PIN065563,522
FCDO,CSC,15/09/2023,Scholar Allowances,Award Costs,Scholar,PIN065563,522
FCDO,CSC,15/09/2023,Scholar Allowances,Award Costs,Scholar,PIN065563,522
FCDO,CSC,15/09/2023,Scholar Allowances,Award Costs,Scholar,PIN065563,522
FCDO,CSC,15/09/2023,Scholar Allowances,Award Costs,Scholar,PIN065563,522
FCDO,CSC,15/09/2023,Scholar Allowances,Award Costs,Scholar,PIN065563,522
FCDO,CSC,15/09/2023,Scholar Allowances,Award Costs,Scholar,PIN065563,522
FCDO,CSC,15/09/2023,Scholar Allowances,Award Costs,Scholar,PIN065563,522
FCDO,CSC,15/09/2023,Scholar Allowances,Award Costs,Scholar,PIN065563,522
FCDO,CSC,15/09/2023,Scholar Allowances,Award Costs,Scholar,PIN065563,522
FCDO,CSC,15/09/2023,Scholar Allowances,Award Costs,Scholar,PIN065563,522
FCDO,CSC,15/09/2023,Scholar Allowances,Award Costs,Scholar,PIN065563,522
FCDO,CSC,15/09/2023,Scholar Allowances,Award Costs,Scholar,PIN065563,522
FCDO,CSC,15/09/2023,Scholar Allowances,Award Costs,Scholar,PIN065563,522
FCDO,CSC,15/09/2023,Scholar Stipend,Award Costs,Scholar,PIN065563,4616.25
FCDO,CSC,15/09/2023,Scholar Stipend,Award Costs,Scholar,PIN065563,4616.25
FCDO,CSC,15/09/2023,Scholar Stipend,Award Costs,Scholar,PIN065563,4616.25
FCDO,CSC,15/09/2023,Scholar Stipend,Award Costs,Scholar,PIN065563,4926
FCDO,CSC,15/09/2023,Scholar Stipend,Award Costs,Scholar,PIN065563,4306.5
FCDO,CSC,15/09/2023,Scholar Stipend,Award Costs,Scholar,PIN065563,4616.25
FCDO,CSC,15/09/2023,Scholar Stipend,Award Costs,Scholar,PIN065563,4306.5
FCDO,CSC,15/09/2023,Scholar Stipend,Award Costs,Scholar,PIN065563,4572
FCDO,CSC,15/09/2023,Scholar Stipend,Award Costs,Scholar,PIN065563,4616.25
FCDO,CSC,15/09/2023,Scholar Stipend,Award Costs,Scholar,PIN065563,4616.25
FCDO,CSC,15/09/2023,Scholar Stipend,Award Costs,Scholar,PIN065563,5770.2
FCDO,CSC,15/09/2023,Scholar Stipend,Award Costs,Scholar,PIN065563,4616.25
FCDO,CSC,15/09/2023,Scholar Stipend,Award Costs,Scholar,PIN065563,5661.64
FCDO,CSC,15/09/2023,Scholar Stipend,Award Costs,Scholar,PIN065563,4616.25
FCDO,CSC,15/09/2023,Scholar Stipend,Award Costs,Scholar,PIN065563,4616.25
FCDO,CSC,15/09/2023,Scholar Stipend,Award Costs,Scholar,PIN065563,4881.75
FCDO,CSC,15/09/2023,Scholar Stipend,Award Costs,Scholar,PIN065563,5661.64
FCDO,CSC,15/09/2023,Bank Charges,Programme Costs,MasterCard Prepaid Management Services Ltd,PIN065563,905.06
FCDO,CSC,19/09/2023,Scholar Stipend,Award Costs,Scholar,PIN065011,5134.15
FCDO,CSC,19/09/2023,Scholar Stipend,Award Costs,Scholar,PIN065011,1763.9
FCDO,CSC,20/09/2023,Scholar Allowances,Award Costs,Scholar,PIN065565,522
FCDO,CSC,20/09/2023,Scholar Allowances,Award Costs,Scholar,PIN065565,522
FCDO,CSC,20/09/2023,Scholar Allowances,Award Costs,Scholar,PIN065565,522
FCDO,CSC,20/09/2023,Scholar Allowances,Award Costs,Scholar,PIN065565,522
FCDO,CSC,20/09/2023,Scholar Allowances,Award Costs,Scholar,PIN065565,522
FCDO,CSC,20/09/2023,Scholar Allowances,Award Costs,Scholar,PIN065565,522
FCDO,CSC,20/09/2023,Scholar Allowances,Award Costs,Scholar,PIN065565,522
FCDO,CSC,20/09/2023,Scholar Allowances,Award Costs,Scholar,PIN065565,522
FCDO,CSC,20/09/2023,Scholar Allowances,Award Costs,Scholar,PIN065565,522
FCDO,CSC,20/09/2023,Scholar Allowances,Award Costs,Scholar,PIN065565,522
FCDO,CSC,20/09/2023,Scholar Allowances,Award Costs,Scholar,PIN065565,522
FCDO,CSC,20/09/2023,Scholar Allowances,Award Costs,Scholar,PIN065565,522
FCDO,CSC,20/09/2023,Scholar Allowances,Award Costs,Scholar,PIN065565,522
FCDO,CSC,20/09/2023,Scholar Allowances,Award Costs,Scholar,PIN065565,522
FCDO,CSC,20/09/2023,Scholar Allowances,Award Costs,Scholar,PIN065565,522
FCDO,CSC,20/09/2023,Scholar Allowances,Award Costs,Scholar,PIN065565,522
FCDO,CSC,20/09/2023,Scholar Allowances,Award Costs,Scholar,PIN065565,522
FCDO,CSC,20/09/2023,Scholar Allowances,Award Costs,Scholar,PIN065565,522
FCDO,CSC,20/09/2023,Scholar Stipend,Award Costs,Scholar,PIN065565,5661.64
FCDO,CSC,20/09/2023,Scholar Stipend,Award Costs,Scholar,PIN065565,4616.25
FCDO,CSC,20/09/2023,Scholar Stipend,Award Costs,Scholar,PIN065565,4306.5
FCDO,CSC,20/09/2023,Scholar Stipend,Award Costs,Scholar,PIN065565,4306.5
FCDO,CSC,20/09/2023,Scholar Stipend,Award Costs,Scholar,PIN065565,5281.68
FCDO,CSC,20/09/2023,Scholar Stipend,Award Costs,Scholar,PIN065565,5661.64
FCDO,CSC,20/09/2023,Scholar Stipend,Award Costs,Scholar,PIN065565,5281.68
FCDO,CSC,20/09/2023,Scholar Stipend,Award Costs,Scholar,PIN065565,5498.8
FCDO,CSC,20/09/2023,Scholar Stipend,Award Costs,Scholar,PIN065565,4616.25
FCDO,CSC,20/09/2023,Scholar Stipend,Award Costs,Scholar,PIN065565,4572
FCDO,CSC,20/09/2023,Scholar Stipend,Award Costs,Scholar,PIN065565,4616.25
FCDO,CSC,20/09/2023,Scholar Stipend,Award Costs,Scholar,PIN065565,4572
FCDO,CSC,20/09/2023,Scholar Stipend,Award Costs,Scholar,PIN065565,4306.5
FCDO,CSC,20/09/2023,Scholar Stipend,Award Costs,Scholar,PIN065565,4616.25
FCDO,CSC,20/09/2023,Scholar Stipend,Award Costs,Scholar,PIN065565,5281.68
FCDO,CSC,20/09/2023,Scholar Stipend,Award Costs,Scholar,PIN065565,5607.36
FCDO,CSC,20/09/2023,Scholar Stipend,Award Costs,Scholar,PIN065565,5281.68
FCDO,CSC,20/09/2023,Scholar Stipend,Award Costs,Scholar,PIN065565,4616.25
FCDO,CSC,20/09/2023,Bank Charges,Programme Costs,MasterCard Prepaid Management Services Ltd,PIN065565,980.99
FCDO,CSC,21/09/2023,Scholar Allowances,Award Costs,Scholar,PIN065566,522
FCDO,CSC,21/09/2023,Scholar Allowances,Award Costs,Scholar,PIN065566,522
FCDO,CSC,21/09/2023,Scholar Allowances,Award Costs,Scholar,PIN065566,522
FCDO,CSC,21/09/2023,Scholar Allowances,Award Costs,Scholar,PIN065566,522
FCDO,CSC,21/09/2023,Scholar Allowances,Award Costs,Scholar,PIN065566,522
FCDO,CSC,21/09/2023,Scholar Stipend,Award Costs,Scholar,PIN065566,4306.5
FCDO,CSC,21/09/2023,Scholar Stipend,Award Costs,Scholar,PIN065566,5283.68
FCDO,CSC,21/09/2023,Scholar Stipend,Award Costs,Scholar,PIN065566,4616.25
FCDO,CSC,21/09/2023,Scholar Stipend,Award Costs,Scholar,PIN065566,5281.68
FCDO,CSC,21/09/2023,Scholar Stipend,Award Costs,Scholar,PIN065566,4660.5
FCDO,CSC,21/09/2023,Bank Charges,Programme Costs,MasterCard Prepaid Management Services Ltd,PIN065566,267.6
FCDO,CSC,22/09/2023,Scholar Allowances,Award Costs,Scholar,PIN065014,600
FCDO,CSC,22/09/2023,Scholar Stipend,Award Costs,Scholar,PIN065015,1236
FCDO,CSC,26/09/2023,Scholar Allowances,Award Costs,Scholar,PIN065568,522
FCDO,CSC,26/09/2023,Scholar Stipend,Award Costs,Scholar,PIN065568,5661.64
FCDO,CSC,26/09/2023,Scholar Allowances,Award Costs,Scholar,PIN065568,522
FCDO,CSC,26/09/2023,Scholar Allowances,Award Costs,Scholar,PIN065568,522
FCDO,CSC,26/09/2023,Scholar Allowances,Award Costs,Scholar,PIN065568,522
FCDO,CSC,26/09/2023,Scholar Allowances,Award Costs,Scholar,PIN065568,522
FCDO,CSC,26/09/2023,Scholar Allowances,Award Costs,Scholar,PIN065568,522
FCDO,CSC,26/09/2023,Scholar Allowances,Award Costs,Scholar,PIN065568,522
FCDO,CSC,26/09/2023,Scholar Allowances,Award Costs,Scholar,PIN065568,522
FCDO,CSC,26/09/2023,Scholar Stipend,Award Costs,Scholar,PIN065568,4616.25
FCDO,CSC,26/09/2023,Scholar Stipend,Award Costs,Scholar,PIN065568,5607.36
FCDO,CSC,26/09/2023,Scholar Stipend,Award Costs,Scholar,PIN065568,5281.68
FCDO,CSC,26/09/2023,Scholar Stipend,Award Costs,Scholar,PIN065568,4308.5
FCDO,CSC,26/09/2023,Scholar Stipend,Award Costs,Scholar,PIN065568,4483.5
FCDO,CSC,26/09/2023,Scholar Stipend,Award Costs,Scholar,PIN065568,4572
FCDO,CSC,26/09/2023,Scholar Stipend,Award Costs,Scholar,PIN065568,4527.75
FCDO,CSC,26/09/2023,Bank Charges,Programme Costs,MasterCard Prepaid Management Services Ltd,PIN065568,432.36
FCDO,CSC,27/09/2023,Scholar Allowances,Award Costs,Scholar,PIN065569,522
FCDO,CSC,27/09/2023,Scholar Allowances,Award Costs,Scholar,PIN065569,522
FCDO,CSC,27/09/2023,Scholar Allowances,Award Costs,Scholar,PIN065569,522
FCDO,CSC,27/09/2023,Scholar Allowances,Award Costs,Scholar,PIN065569,522
FCDO,CSC,27/09/2023,Scholar Allowances,Award Costs,Scholar,PIN065569,522
FCDO,CSC,27/09/2023,Scholar Allowances,Award Costs,Scholar,PIN065569,522
FCDO,CSC,27/09/2023,Scholar Allowances,Award Costs,Scholar,PIN065569,522
FCDO,CSC,27/09/2023,Scholar Allowances,Award Costs,Scholar,PIN065569,522
FCDO,CSC,27/09/2023,Scholar Allowances,Award Costs,Scholar,PIN065569,522
FCDO,CSC,27/09/2023,Scholar Allowances,Award Costs,Scholar,PIN065569,522
FCDO,CSC,27/09/2023,Scholar Allowances,Award Costs,Scholar,PIN065569,522
FCDO,CSC,27/09/2023,Scholar Stipend,Award Costs,Scholar,PIN065569,5498.8
FCDO,CSC,27/09/2023,Scholar Stipend,Award Costs,Scholar,PIN065569,4616.25
FCDO,CSC,27/09/2023,Scholar Stipend,Award Costs,Scholar,PIN065569,4306.5
FCDO,CSC,27/09/2023,Scholar Stipend,Award Costs,Scholar,PIN065569,5281.68
FCDO,CSC,27/09/2023,Scholar Stipend,Award Costs,Scholar,PIN065569,4306.5
FCDO,CSC,27/09/2023,Scholar Stipend,Award Costs,Scholar,PIN065569,5281.68
FCDO,CSC,27/09/2023,Scholar Stipend,Award Costs,Scholar,PIN065569,4021.5
FCDO,CSC,27/09/2023,Scholar Stipend,Award Costs,Scholar,PIN065569,4306.5
FCDO,CSC,27/09/2023,Scholar Stipend,Award Costs,Scholar,PIN065569,4308.5
FCDO,CSC,27/09/2023,Scholar Stipend,Award Costs,Scholar,PIN065569,5281.68
FCDO,CSC,27/09/2023,Scholar Stipend,Award Costs,Scholar,PIN065569,4306.5
FCDO,CSC,27/09/2023,Scholar Allowances,Award Costs,Scholar,PIN065569,522
FCDO,CSC,27/09/2023,Scholar Allowances,Award Costs,Scholar,PIN065569,522
FCDO,CSC,27/09/2023,Scholar Allowances,Award Costs,Scholar,PIN065569,522
FCDO,CSC,27/09/2023,Scholar Allowances,Award Costs,Scholar,PIN065569,522
FCDO,CSC,27/09/2023,Scholar Allowances,Award Costs,Scholar,PIN065569,522
FCDO,CSC,27/09/2023,Scholar Allowances,Award Costs,Scholar,PIN065569,522
FCDO,CSC,27/09/2023,Scholar Allowances,Award Costs,Scholar,PIN065569,522
FCDO,CSC,27/09/2023,Scholar Allowances,Award Costs,Scholar,PIN065569,522
FCDO,CSC,27/09/2023,Scholar Allowances,Award Costs,Scholar,PIN065569,522
FCDO,CSC,27/09/2023,Scholar Allowances,Award Costs,Scholar,PIN065569,522
FCDO,CSC,27/09/2023,Scholar Stipend,Award Costs,Scholar,PIN065569,4572
FCDO,CSC,27/09/2023,Scholar Stipend,Award Costs,Scholar,PIN065569,4956
FCDO,CSC,27/09/2023,Scholar Stipend,Award Costs,Scholar,PIN065569,4041
FCDO,CSC,27/09/2023,Scholar Stipend,Award Costs,Scholar,PIN065569,4306.5
FCDO,CSC,27/09/2023,Scholar Stipend,Award Costs,Scholar,PIN065569,4041
FCDO,CSC,27/09/2023,Scholar Stipend,Award Costs,Scholar,PIN065569,5281.68
FCDO,CSC,27/09/2023,Scholar Stipend,Award Costs,Scholar,PIN065569,4616.25
FCDO,CSC,27/09/2023,Scholar Stipend,Award Costs,Scholar,PIN065569,4350.75
FCDO,CSC,27/09/2023,Scholar Stipend,Award Costs,Scholar,PIN065569,5335.96
FCDO,CSC,27/09/2023,Scholar Stipend,Award Costs,Scholar,PIN065569,4262.25
FCDO,CSC,27/09/2023,Scholar Allowances,Award Costs,Scholar,PIN065569,-522
FCDO,CSC,27/09/2023,Scholar Stipend,Award Costs,Scholar,PIN065569,-5661.64
FCDO,CSC,27/09/2023,Bank Charges,Programme Costs,MasterCard Prepaid Management Services Ltd,PIN065569,1082.46
FCDO,CSC,27/09/2023,Tuition Fee,Award Costs,Cardiff University,PRF000293,-17657.42
FCDO,CSC,28/09/2023,Scholar Stipend,Award Costs,Scholar,PIN065570,4041
FCDO,CSC,28/09/2023,Bank Charges,Programme Costs,MasterCard Prepaid Management Services Ltd,PIN065570,40.41
FCDO,CSC,29/09/2023,Scholar Stipend,Award Costs,Scholar,PIN065018,1723.16
FCDO,CSC,29/09/2023,Scholar Stipend,Award Costs,Scholar,PIN065019,4041
FCDO,CSC,29/09/2023,Scholar Stipend,Award Costs,Scholar,PIN065020,4041
FCDO,CSC,29/09/2023,Scholar Stipend,Award Costs,Scholar,PIN065021,4956
FCDO,CSC,29/09/2023,Scholar Stipend,Award Costs,Scholar,PIN065022,4041
FCDO,CSC,29/09/2023,Scholar Stipend,Award Costs,Scholar,PIN065023,4041
FCDO,CSC,29/09/2023,Scholar Stipend,Award Costs,Scholar,PIN065024,4041
FCDO,CSC,29/09/2023,Scholar Stipend,Award Costs,Scholar,PIN065025,4041
FCDO,CSC,29/09/2023,Scholar Stipend,Award Costs,Scholar,PIN065027,4041
FCDO,CSC,29/09/2023,Scholar Stipend,Award Costs,Scholar,PIN065028,4956
FCDO,CSC,29/09/2023,Scholar Stipend,Award Costs,Scholar,PIN065029,4041
FCDO,CSC,29/09/2023,Scholar Stipend,Award Costs,Scholar,PIN065030,4956
FCDO,CSC,29/09/2023,Scholar Stipend,Award Costs,Scholar,PIN065031,4041
FCDO,CSC,29/09/2023,Scholar Stipend,Award Costs,Scholar,PIN065032,4041
FCDO,CSC,29/09/2023,Scholar Stipend,Award Costs,Scholar,PIN065033,3304
FCDO,CSC,29/09/2023,Scholar Stipend,Award Costs,Scholar,PIN065035,4041
FCDO,CSC,29/09/2023,Scholar Stipend,Award Costs,Scholar,PIN065036,4041
FCDO,CSC,29/09/2023,Scholar Stipend,Award Costs,Scholar,PIN065037,4956
FCDO,CSC,29/09/2023,Scholar Stipend,Award Costs,Scholar,PIN065038,4041
FCDO,CSC,29/09/2023,Scholar Stipend,Award Costs,Scholar,PIN065039,4041
FCDO,CSC,29/09/2023,Scholar Stipend,Award Costs,Scholar,PIN065040,4041
FCDO,CSC,29/09/2023,Scholar Stipend,Award Costs,Scholar,PIN065041,4041
FCDO,CSC,29/09/2023,Scholar Stipend,Award Costs,Scholar,PIN065043,4041
FCDO,CSC,29/09/2023,Scholar Stipend,Award Costs,Scholar,PIN065044,4041
FCDO,CSC,29/09/2023,Scholar Stipend,Award Costs,Scholar,PIN065045,4041
FCDO,CSC,29/09/2023,Scholar Stipend,Award Costs,Scholar,PIN065046,4956
FCDO,CSC,29/09/2023,Scholar Stipend,Award Costs,Scholar,PIN065047,4041
FCDO,CSC,29/09/2023,Scholar Stipend,Award Costs,Scholar,PIN065048,4041
FCDO,CSC,29/09/2023,Scholar Stipend,Award Costs,Scholar,PIN065049,4041
FCDO,CSC,29/09/2023,Scholar Stipend,Award Costs,Scholar,PIN065050,3304
FCDO,CSC,29/09/2023,Scholar Stipend,Award Costs,Scholar,PIN065051,4041
FCDO,CSC,29/09/2023,Scholar Stipend,Award Costs,Scholar,PIN065052,4956
FCDO,CSC,29/09/2023,Scholar Stipend,Award Costs,Scholar,PIN065053,4041
FCDO,CSC,29/09/2023,Scholar Stipend,Award Costs,Scholar,PIN065054,4041
FCDO,CSC,29/09/2023,Scholar Stipend,Award Costs,Scholar,PIN065055,4041
FCDO,CSC,29/09/2023,Scholar Stipend,Award Costs,Scholar,PIN065056,4041
FCDO,CSC,29/09/2023,Scholar Stipend,Award Costs,Scholar,PIN065057,4041
FCDO,CSC,29/09/2023,Scholar Stipend,Award Costs,Scholar,PIN065059,4041
FCDO,CSC,29/09/2023,Scholar Stipend,Award Costs,Scholar,PIN065060,2020.5
FCDO,CSC,29/09/2023,Scholar Stipend,Award Costs,Scholar,PIN065061,4956
FCDO,CSC,29/09/2023,Scholar Stipend,Award Costs,Scholar,PIN065062,4041
FCDO,CSC,29/09/2023,Scholar Stipend,Award Costs,Scholar,PIN065063,4548
FCDO,CSC,29/09/2023,Scholar Stipend,Award Costs,Scholar,PIN065065,4041
FCDO,CSC,29/09/2023,Scholar Stipend,Award Costs,Scholar,PIN065066,4041
FCDO,CSC,29/09/2023,Scholar Stipend,Award Costs,Scholar,PIN065067,4041
FCDO,CSC,29/09/2023,Scholar Stipend,Award Costs,Scholar,PIN065068,4041
FCDO,CSC,29/09/2023,Scholar Stipend,Award Costs,Scholar,PIN065069,4041
FCDO,CSC,29/09/2023,Scholar Stipend,Award Costs,Scholar,PIN065070,4041
FCDO,CSC,29/09/2023,Scholar Stipend,Award Costs,Scholar,PIN065072,4041
FCDO,CSC,29/09/2023,Scholar Stipend,Award Costs,Scholar,PIN065073,4041
FCDO,CSC,29/09/2023,Scholar Stipend,Award Costs,Scholar,PIN065074,4041
FCDO,CSC,29/09/2023,Scholar Stipend,Award Costs,Scholar,PIN065075,4041
FCDO,CSC,29/09/2023,Scholar Stipend,Award Costs,Scholar,PIN065076,4041
FCDO,CSC,29/09/2023,Scholar Stipend,Award Costs,Scholar,PIN065077,4041
FCDO,CSC,29/09/2023,Scholar Stipend,Award Costs,Scholar,PIN065078,4041
FCDO,CSC,29/09/2023,Scholar Stipend,Award Costs,Scholar,PIN065079,4041
FCDO,CSC,29/09/2023,Scholar Stipend,Award Costs,Scholar,PIN065080,4041
FCDO,CSC,29/09/2023,Scholar Stipend,Award Costs,Scholar,PIN065081,4041
FCDO,CSC,29/09/2023,Scholar Stipend,Award Costs,Scholar,PIN065082,4041
FCDO,CSC,29/09/2023,Scholar Stipend,Award Costs,Scholar,PIN065083,4956
FCDO,CSC,29/09/2023,Scholar Stipend,Award Costs,Scholar,PIN065084,4041
FCDO,CSC,29/09/2023,Scholar Stipend,Award Costs,Scholar,PIN065085,4041
FCDO,CSC,29/09/2023,Scholar Stipend,Award Costs,Scholar,PIN065086,4041
FCDO,CSC,29/09/2023,Scholar Stipend,Award Costs,Scholar,PIN065087,4041
FCDO,CSC,29/09/2023,Scholar Stipend,Award Costs,Scholar,PIN065089,4041
FCDO,CSC,29/09/2023,Scholar Stipend,Award Costs,Scholar,PIN065090,4041
FCDO,CSC,29/09/2023,Scholar Stipend,Award Costs,Scholar,PIN065091,4041
FCDO,CSC,29/09/2023,Scholar Stipend,Award Costs,Scholar,PIN065092,4041
FCDO,CSC,29/09/2023,Scholar Stipend,Award Costs,Scholar,PIN065094,4041
FCDO,CSC,29/09/2023,Scholar Stipend,Award Costs,Scholar,PIN065095,4041
FCDO,CSC,29/09/2023,Scholar Stipend,Award Costs,Scholar,PIN065096,4041
FCDO,CSC,29/09/2023,Scholar Stipend,Award Costs,Scholar,PIN065097,4041
FCDO,CSC,29/09/2023,Scholar Stipend,Award Costs,Scholar,PIN065098,4041
FCDO,CSC,29/09/2023,Scholar Stipend,Award Costs,Scholar,PIN065099,4041
FCDO,CSC,29/09/2023,Scholar Stipend,Award Costs,Scholar,PIN065100,4041
FCDO,CSC,29/09/2023,Scholar Stipend,Award Costs,Scholar,PIN065101,4041
FCDO,CSC,29/09/2023,Scholar Stipend,Award Costs,Scholar,PIN065102,4956
FCDO,CSC,29/09/2023,Scholar Stipend,Award Costs,Scholar,PIN065103,4041
FCDO,CSC,29/09/2023,Scholar Stipend,Award Costs,Scholar,PIN065104,4956
FCDO,CSC,29/09/2023,Scholar Stipend,Award Costs,Scholar,PIN065105,4041
FCDO,CSC,29/09/2023,Scholar Stipend,Award Costs,Scholar,PIN065106,4956
FCDO,CSC,29/09/2023,Scholar Stipend,Award Costs,Scholar,PIN065107,4041
FCDO,CSC,29/09/2023,Scholar Stipend,Award Costs,Scholar,PIN065108,4041
FCDO,CSC,29/09/2023,Scholar Stipend,Award Costs,Scholar,PIN065109,4041
FCDO,CSC,29/09/2023,Scholar Stipend,Award Costs,Scholar,PIN065110,4041
FCDO,CSC,29/09/2023,Scholar Stipend,Award Costs,Scholar,PIN065111,4041
FCDO,CSC,29/09/2023,Scholar Stipend,Award Costs,Scholar,PIN065112,4956
FCDO,CSC,29/09/2023,Scholar Stipend,Award Costs,Scholar,PIN065113,4041
FCDO,CSC,29/09/2023,Scholar Stipend,Award Costs,Scholar,PIN065114,4041
FCDO,CSC,29/09/2023,Scholar Stipend,Award Costs,Scholar,PIN065115,4041
FCDO,CSC,29/09/2023,Scholar Stipend,Award Costs,Scholar,PIN065116,3649.63
FCDO,CSC,29/09/2023,Scholar Stipend,Award Costs,Scholar,PIN065117,4041
FCDO,CSC,29/09/2023,Scholar Stipend,Award Costs,Scholar,PIN065119,4041
FCDO,CSC,29/09/2023,Scholar Stipend,Award Costs,Scholar,PIN065120,4956
FCDO,CSC,29/09/2023,Scholar Stipend,Award Costs,Scholar,PIN065121,4041
FCDO,CSC,29/09/2023,Scholar Stipend,Award Costs,Scholar,PIN065122,4041
FCDO,CSC,29/09/2023,Scholar Stipend,Award Costs,Scholar,PIN065123,4041
FCDO,CSC,29/09/2023,Scholar Stipend,Award Costs,Scholar,PIN065124,1944.44
FCDO,CSC,29/09/2023,Scholar Stipend,Award Costs,Scholar,PIN065125,4041
FCDO,CSC,29/09/2023,Scholar Stipend,Award Costs,Scholar,PIN065126,4041
FCDO,CSC,29/09/2023,Scholar Stipend,Award Costs,Scholar,PIN065127,4041
FCDO,CSC,29/09/2023,Scholar Stipend,Award Costs,Scholar,PIN065128,1347
FCDO,CSC,29/09/2023,Scholar Stipend,Award Costs,Scholar,PIN065129,4041
FCDO,CSC,29/09/2023,Scholar Stipend,Award Costs,Scholar,PIN065130,4041
FCDO,CSC,29/09/2023,Scholar Stipend,Award Costs,Scholar,PIN065131,4041
FCDO,CSC,29/09/2023,Scholar Stipend,Award Costs,Scholar,PIN065132,4041
FCDO,CSC,29/09/2023,Scholar Stipend,Award Costs,Scholar,PIN065133,4041
FCDO,CSC,29/09/2023,Scholar Stipend,Award Costs,Scholar,PIN065134,4041
FCDO,CSC,29/09/2023,Scholar Stipend,Award Costs,Scholar,PIN065135,4041
FCDO,CSC,29/09/2023,Scholar Stipend,Award Costs,Scholar,PIN065136,4041
FCDO,CSC,29/09/2023,Scholar Stipend,Award Costs,Scholar,PIN065137,4548
FCDO,CSC,29/09/2023,Scholar Stipend,Award Costs,Scholar,PIN065138,4041
FCDO,CSC,29/09/2023,Scholar Stipend,Award Costs,Scholar,PIN065139,4041
FCDO,CSC,29/09/2023,Scholar Stipend,Award Costs,Scholar,PIN065140,4956
FCDO,CSC,29/09/2023,Scholar Stipend,Award Costs,Scholar,PIN065141,4956
FCDO,CSC,29/09/2023,Scholar Stipend,Award Costs,Scholar,PIN065142,4041
FCDO,CSC,29/09/2023,Scholar Stipend,Award Costs,Scholar,PIN065144,4041
FCDO,CSC,29/09/2023,Scholar Stipend,Award Costs,Scholar,PIN065146,4041
FCDO,CSC,29/09/2023,Scholar Stipend,Award Costs,Scholar,PIN065147,4041
FCDO,CSC,29/09/2023,Scholar Stipend,Award Costs,Scholar,PIN065148,2020.5
FCDO,CSC,29/09/2023,Scholar Stipend,Award Costs,Scholar,PIN065149,4041
FCDO,CSC,29/09/2023,Scholar Stipend,Award Costs,Scholar,PIN065150,4041
FCDO,CSC,29/09/2023,Scholar Stipend,Award Costs,Scholar,PIN065151,4041
FCDO,CSC,29/09/2023,Scholar Stipend,Award Costs,Scholar,PIN065152,4041
FCDO,CSC,29/09/2023,Scholar Stipend,Award Costs,Scholar,PIN065153,4041
FCDO,CSC,29/09/2023,Scholar Stipend,Award Costs,Scholar,PIN065154,4956
FCDO,CSC,29/09/2023,Scholar Stipend,Award Costs,Scholar,PIN065155,4041
FCDO,CSC,29/09/2023,Scholar Stipend,Award Costs,Scholar,PIN065156,4956
FCDO,CSC,29/09/2023,Scholar Stipend,Award Costs,Scholar,PIN065157,4041
FCDO,CSC,29/09/2023,Scholar Stipend,Award Costs,Scholar,PIN065158,4956
FCDO,CSC,29/09/2023,Scholar Stipend,Award Costs,Scholar,PIN065159,4041
FCDO,CSC,29/09/2023,Scholar Stipend,Award Costs,Scholar,PIN065160,4041
FCDO,CSC,29/09/2023,Scholar Stipend,Award Costs,Scholar,PIN065161,4041
FCDO,CSC,29/09/2023,Scholar Stipend,Award Costs,Scholar,PIN065162,4041
FCDO,CSC,29/09/2023,Scholar Stipend,Award Costs,Scholar,PIN065163,4041
FCDO,CSC,29/09/2023,Scholar Stipend,Award Costs,Scholar,PIN065164,4041
FCDO,CSC,29/09/2023,Scholar Stipend,Award Costs,Scholar,PIN065165,4041
FCDO,CSC,29/09/2023,Scholar Stipend,Award Costs,Scholar,PIN065166,4041
FCDO,CSC,29/09/2023,Scholar Stipend,Award Costs,Scholar,PIN065167,4041
FCDO,CSC,29/09/2023,Scholar Stipend,Award Costs,Scholar,PIN065168,4041
FCDO,CSC,29/09/2023,Scholar Stipend,Award Costs,Scholar,PIN065169,4041
FCDO,CSC,29/09/2023,Scholar Stipend,Award Costs,Scholar,PIN065170,4956
FCDO,CSC,29/09/2023,Scholar Stipend,Award Costs,Scholar,PIN065171,4041
FCDO,CSC,29/09/2023,Scholar Stipend,Award Costs,Scholar,PIN065172,4041
FCDO,CSC,29/09/2023,Scholar Stipend,Award Costs,Scholar,PIN065173,4041
FCDO,CSC,29/09/2023,Scholar Stipend,Award Costs,Scholar,PIN065174,4041
FCDO,CSC,29/09/2023,Scholar Stipend,Award Costs,Scholar,PIN065175,4041
FCDO,CSC,29/09/2023,Scholar Stipend,Award Costs,Scholar,PIN065176,4041
FCDO,CSC,29/09/2023,Scholar Stipend,Award Costs,Scholar,PIN065177,4041
FCDO,CSC,29/09/2023,Scholar Stipend,Award Costs,Scholar,PIN065178,4041
FCDO,CSC,29/09/2023,Scholar Stipend,Award Costs,Scholar,PIN065179,4041
FCDO,CSC,29/09/2023,Scholar Stipend,Award Costs,Scholar,PIN065180,4041
FCDO,CSC,29/09/2023,Scholar Stipend,Award Costs,Scholar,PIN065181,4041
FCDO,CSC,29/09/2023,Scholar Stipend,Award Costs,Scholar,PIN065182,4041
FCDO,CSC,29/09/2023,Scholar Stipend,Award Costs,Scholar,PIN065183,4041
FCDO,CSC,29/09/2023,Scholar Stipend,Award Costs,Scholar,PIN065184,4041
FCDO,CSC,29/09/2023,Scholar Stipend,Award Costs,Scholar,PIN065185,4041
FCDO,CSC,29/09/2023,Scholar Stipend,Award Costs,Scholar,PIN065186,4041
FCDO,CSC,29/09/2023,Scholar Stipend,Award Costs,Scholar,PIN065187,4041
FCDO,CSC,29/09/2023,Scholar Stipend,Award Costs,Scholar,PIN065188,4041
FCDO,CSC,29/09/2023,Scholar Stipend,Award Costs,Scholar,PIN065189,4956
FCDO,CSC,29/09/2023,Scholar Stipend,Award Costs,Scholar,PIN065190,4041
FCDO,CSC,29/09/2023,Scholar Stipend,Award Costs,Scholar,PIN065191,4041
FCDO,CSC,29/09/2023,Scholar Stipend,Award Costs,Scholar,PIN065192,4041
FCDO,CSC,29/09/2023,Scholar Stipend,Award Costs,Scholar,PIN065193,3708
FCDO,CSC,29/09/2023,Scholar Stipend,Award Costs,Scholar,PIN065194,4041
FCDO,CSC,29/09/2023,Scholar Stipend,Award Costs,Scholar,PIN065195,4041
FCDO,CSC,29/09/2023,Scholar Stipend,Award Costs,Scholar,PIN065196,4041
FCDO,CSC,29/09/2023,Scholar Stipend,Award Costs,Scholar,PIN065197,4041
FCDO,CSC,29/09/2023,Scholar Stipend,Award Costs,Scholar,PIN065198,4041
FCDO,CSC,29/09/2023,Scholar Stipend,Award Costs,Scholar,PIN065199,4041
FCDO,CSC,29/09/2023,Scholar Stipend,Award Costs,Scholar,PIN065200,4041
FCDO,CSC,29/09/2023,Scholar Stipend,Award Costs,Scholar,PIN065201,4041
FCDO,CSC,29/09/2023,Scholar Stipend,Award Costs,Scholar,PIN065202,4956
FCDO,CSC,29/09/2023,Scholar Stipend,Award Costs,Scholar,PIN065203,4041
FCDO,CSC,29/09/2023,Scholar Stipend,Award Costs,Scholar,PIN065204,4041
FCDO,CSC,29/09/2023,Scholar Stipend,Award Costs,Scholar,PIN065205,4041
FCDO,CSC,29/09/2023,Scholar Stipend,Award Costs,Scholar,PIN065206,4041
FCDO,CSC,29/09/2023,Scholar Stipend,Award Costs,Scholar,PIN065207,4041
FCDO,CSC,29/09/2023,Scholar Stipend,Award Costs,Scholar,PIN065208,4041
FCDO,CSC,29/09/2023,Scholar Stipend,Award Costs,Scholar,PIN065209,2478
FCDO,CSC,29/09/2023,Scholar Stipend,Award Costs,Scholar,PIN065210,4041
FCDO,CSC,29/09/2023,Scholar Stipend,Award Costs,Scholar,PIN065211,4041
FCDO,CSC,29/09/2023,Scholar Stipend,Award Costs,Scholar,PIN065212,4041
FCDO,CSC,29/09/2023,Scholar Stipend,Award Costs,Scholar,PIN065213,4956
FCDO,CSC,29/09/2023,Scholar Stipend,Award Costs,Scholar,PIN065214,4041
FCDO,CSC,29/09/2023,Scholar Stipend,Award Costs,Scholar,PIN065215,4041
FCDO,CSC,29/09/2023,Scholar Stipend,Award Costs,Scholar,PIN065216,4956
FCDO,CSC,29/09/2023,Scholar Stipend,Award Costs,Scholar,PIN065218,4956
FCDO,CSC,29/09/2023,Scholar Stipend,Award Costs,Scholar,PIN065219,4041
FCDO,CSC,29/09/2023,Scholar Stipend,Award Costs,Scholar,PIN065220,4956
FCDO,CSC,29/09/2023,Scholar Stipend,Award Costs,Scholar,PIN065221,4041
FCDO,CSC,29/09/2023,Scholar Stipend,Award Costs,Scholar,PIN065222,4041
FCDO,CSC,29/09/2023,Scholar Stipend,Award Costs,Scholar,PIN065223,4041
FCDO,CSC,29/09/2023,Scholar Stipend,Award Costs,Scholar,PIN065224,3708
FCDO,CSC,29/09/2023,Scholar Stipend,Award Costs,Scholar,PIN065225,1204.56
FCDO,CSC,29/09/2023,Scholar Stipend,Award Costs,Scholar,PIN065226,4041
FCDO,CSC,29/09/2023,Scholar Stipend,Award Costs,Scholar,PIN065227,4041
FCDO,CSC,29/09/2023,Scholar Stipend,Award Costs,Scholar,PIN065229,4041
FCDO,CSC,29/09/2023,Scholar Stipend,Award Costs,Scholar,PIN065230,4041
FCDO,CSC,29/09/2023,Scholar Stipend,Award Costs,Scholar,PIN065231,4041
FCDO,CSC,29/09/2023,Scholar Stipend,Award Costs,Scholar,PIN065232,4041
FCDO,CSC,29/09/2023,Scholar Stipend,Award Costs,Scholar,PIN065234,4041
FCDO,CSC,29/09/2023,Scholar Stipend,Award Costs,Scholar,PIN065235,4041
FCDO,CSC,29/09/2023,Scholar Stipend,Award Costs,Scholar,PIN065236,4956
FCDO,CSC,29/09/2023,Scholar Stipend,Award Costs,Scholar,PIN065237,4041
FCDO,CSC,29/09/2023,Scholar Stipend,Award Costs,Scholar,PIN065239,4041
FCDO,CSC,29/09/2023,Scholar Stipend,Award Costs,Scholar,PIN065240,4041
FCDO,CSC,29/09/2023,Scholar Stipend,Award Costs,Scholar,PIN065241,4041
FCDO,CSC,29/09/2023,Scholar Stipend,Award Costs,Scholar,PIN065243,4041
FCDO,CSC,29/09/2023,Scholar Stipend,Award Costs,Scholar,PIN065244,4041
FCDO,CSC,29/09/2023,Scholar Stipend,Award Costs,Scholar,PIN065246,4041
FCDO,CSC,29/09/2023,Scholar Stipend,Award Costs,Scholar,PIN065247,4041
FCDO,CSC,29/09/2023,Scholar Stipend,Award Costs,Scholar,PIN065248,4041
FCDO,CSC,29/09/2023,Scholar Stipend,Award Costs,Scholar,PIN065249,4041
FCDO,CSC,29/09/2023,Scholar Stipend,Award Costs,Scholar,PIN065250,4956
FCDO,CSC,29/09/2023,Scholar Stipend,Award Costs,Scholar,PIN065251,4041
FCDO,CSC,29/09/2023,Scholar Stipend,Award Costs,Scholar,PIN065252,4041
FCDO,CSC,29/09/2023,Scholar Stipend,Award Costs,Scholar,PIN065253,4041
FCDO,CSC,29/09/2023,Scholar Stipend,Award Costs,Scholar,PIN065254,4041
FCDO,CSC,29/09/2023,Scholar Stipend,Award Costs,Scholar,PIN065255,4041
FCDO,CSC,29/09/2023,Scholar Stipend,Award Costs,Scholar,PIN065256,4041
FCDO,CSC,29/09/2023,Scholar Stipend,Award Costs,Scholar,PIN065257,4041
FCDO,CSC,29/09/2023,Scholar Stipend,Award Costs,Scholar,PIN065258,4041
FCDO,CSC,29/09/2023,Scholar Stipend,Award Costs,Scholar,PIN065259,4041
FCDO,CSC,29/09/2023,Scholar Stipend,Award Costs,Scholar,PIN065260,4041
FCDO,CSC,29/09/2023,Scholar Stipend,Award Costs,Scholar,PIN065261,4041
FCDO,CSC,29/09/2023,Scholar Stipend,Award Costs,Scholar,PIN065262,4956
FCDO,CSC,29/09/2023,Scholar Stipend,Award Costs,Scholar,PIN065263,4041
FCDO,CSC,29/09/2023,Scholar Stipend,Award Costs,Scholar,PIN065264,2478
FCDO,CSC,29/09/2023,Scholar Stipend,Award Costs,Scholar,PIN065265,4041
FCDO,CSC,29/09/2023,Scholar Stipend,Award Costs,Scholar,PIN065266,4041
FCDO,CSC,29/09/2023,Scholar Stipend,Award Costs,Scholar,PIN065267,4041
FCDO,CSC,29/09/2023,Scholar Stipend,Award Costs,Scholar,PIN065268,4041
FCDO,CSC,29/09/2023,Scholar Stipend,Award Costs,Scholar,PIN065269,4956
FCDO,CSC,29/09/2023,Scholar Stipend,Award Costs,Scholar,PIN065270,3304
FCDO,CSC,29/09/2023,Scholar Stipend,Award Costs,Scholar,PIN065271,4956
FCDO,CSC,29/09/2023,Scholar Stipend,Award Costs,Scholar,PIN065272,4041
FCDO,CSC,29/09/2023,Scholar Stipend,Award Costs,Scholar,PIN065275,4041
FCDO,CSC,29/09/2023,Scholar Stipend,Award Costs,Scholar,PIN065276,4041
FCDO,CSC,29/09/2023,Scholar Stipend,Award Costs,Scholar,PIN065277,4956
FCDO,CSC,29/09/2023,Scholar Stipend,Award Costs,Scholar,PIN065278,4041
FCDO,CSC,29/09/2023,Scholar Stipend,Award Costs,Scholar,PIN065279,4956
FCDO,CSC,29/09/2023,Scholar Stipend,Award Costs,Scholar,PIN065280,4041
FCDO,CSC,29/09/2023,Scholar Stipend,Award Costs,Scholar,PIN065281,4041
FCDO,CSC,29/09/2023,Scholar Stipend,Award Costs,Scholar,PIN065282,4041
FCDO,CSC,29/09/2023,Scholar Stipend,Award Costs,Scholar,PIN065283,4041
FCDO,CSC,29/09/2023,Scholar Stipend,Award Costs,Scholar,PIN065284,4041
FCDO,CSC,29/09/2023,Scholar Stipend,Award Costs,Scholar,PIN065285,4956
FCDO,CSC,29/09/2023,Scholar Stipend,Award Costs,Scholar,PIN065286,4041
FCDO,CSC,29/09/2023,Scholar Stipend,Award Costs,Scholar,PIN065287,4956
FCDO,CSC,29/09/2023,Scholar Stipend,Award Costs,Scholar,PIN065288,4041
FCDO,CSC,29/09/2023,Scholar Stipend,Award Costs,Scholar,PIN065289,4041
FCDO,CSC,29/09/2023,Scholar Stipend,Award Costs,Scholar,PIN065290,4041
FCDO,CSC,29/09/2023,Scholar Stipend,Award Costs,Scholar,PIN065291,4041
FCDO,CSC,29/09/2023,Scholar Stipend,Award Costs,Scholar,PIN065292,4041
FCDO,CSC,29/09/2023,Scholar Stipend,Award Costs,Scholar,PIN065293,4041
FCDO,CSC,29/09/2023,Scholar Stipend,Award Costs,Scholar,PIN065294,4041
FCDO,CSC,29/09/2023,Scholar Stipend,Award Costs,Scholar,PIN065295,4041
FCDO,CSC,29/09/2023,Scholar Stipend,Award Costs,Scholar,PIN065296,4041
FCDO,CSC,29/09/2023,Scholar Stipend,Award Costs,Scholar,PIN065297,4041
FCDO,CSC,29/09/2023,Scholar Stipend,Award Costs,Scholar,PIN065298,4041
FCDO,CSC,29/09/2023,Scholar Stipend,Award Costs,Scholar,PIN065299,4041
FCDO,CSC,29/09/2023,Scholar Stipend,Award Costs,Scholar,PIN065300,4956
FCDO,CSC,29/09/2023,Scholar Stipend,Award Costs,Scholar,PIN065301,3304
FCDO,CSC,29/09/2023,Scholar Stipend,Award Costs,Scholar,PIN065302,4041
FCDO,CSC,29/09/2023,Scholar Stipend,Award Costs,Scholar,PIN065303,4041
FCDO,CSC,29/09/2023,Scholar Stipend,Award Costs,Scholar,PIN065304,4041
FCDO,CSC,29/09/2023,Scholar Stipend,Award Costs,Scholar,PIN065305,4041
FCDO,CSC,29/09/2023,Scholar Stipend,Award Costs,Scholar,PIN065306,4041
FCDO,CSC,29/09/2023,Scholar Stipend,Award Costs,Scholar,PIN065307,4041
FCDO,CSC,29/09/2023,Scholar Stipend,Award Costs,Scholar,PIN065308,4041
FCDO,CSC,29/09/2023,Scholar Stipend,Award Costs,Scholar,PIN065309,4041
FCDO,CSC,29/09/2023,Scholar Stipend,Award Costs,Scholar,PIN065310,4041
FCDO,CSC,29/09/2023,Scholar Stipend,Award Costs,Scholar,PIN065311,4041
FCDO,CSC,29/09/2023,Scholar Stipend,Award Costs,Scholar,PIN065312,4956
FCDO,CSC,29/09/2023,Scholar Stipend,Award Costs,Scholar,PIN065313,4041
FCDO,CSC,29/09/2023,Scholar Stipend,Award Costs,Scholar,PIN065314,4041
FCDO,CSC,29/09/2023,Scholar Stipend,Award Costs,Scholar,PIN065315,4041
FCDO,CSC,29/09/2023,Scholar Stipend,Award Costs,Scholar,PIN065316,4041
FCDO,CSC,29/09/2023,Scholar Stipend,Award Costs,Scholar,PIN065318,4041
FCDO,CSC,29/09/2023,Scholar Stipend,Award Costs,Scholar,PIN065319,4041
FCDO,CSC,29/09/2023,Scholar Stipend,Award Costs,Scholar,PIN065320,4041
FCDO,CSC,29/09/2023,Scholar Stipend,Award Costs,Scholar,PIN065321,4041
FCDO,CSC,29/09/2023,Scholar Stipend,Award Costs,Scholar,PIN065323,4956
FCDO,CSC,29/09/2023,Scholar Stipend,Award Costs,Scholar,PIN065324,2020.5
FCDO,CSC,29/09/2023,Scholar Stipend,Award Costs,Scholar,PIN065325,4041
FCDO,CSC,29/09/2023,Scholar Stipend,Award Costs,Scholar,PIN065326,4041
FCDO,CSC,29/09/2023,Scholar Stipend,Award Costs,Scholar,PIN065327,4041
FCDO,CSC,29/09/2023,Scholar Stipend,Award Costs,Scholar,PIN065328,4041
FCDO,CSC,29/09/2023,Scholar Allowances,Award Costs,Scholar,PIN065330,870
FCDO,CSC,29/09/2023,Scholar Allowances,Award Costs,Scholar,PIN065331,1299
FCDO,CSC,29/09/2023,Scholar Allowances,Award Costs,Scholar,PIN065332,1299
FCDO,CSC,29/09/2023,Scholar Allowances,Award Costs,Scholar,PIN065333,1731
FCDO,CSC,29/09/2023,Scholar Allowances,Award Costs,Scholar,PIN065334,870
FCDO,CSC,29/09/2023,Scholar Allowances,Award Costs,Scholar,PIN065335,1299
FCDO,CSC,29/09/2023,Scholar Allowances,Award Costs,Scholar,PIN065336,870
FCDO,CSC,29/09/2023,Scholar Allowances,Award Costs,Scholar,PIN065337,1728
FCDO,CSC,29/09/2023,Scholar Allowances,Award Costs,Scholar,PIN065338,870
FCDO,CSC,29/09/2023,Scholar Allowances,Award Costs,Scholar,PIN065339,1299
FCDO,CSC,29/09/2023,Scholar Allowances,Award Costs,Scholar,PIN065340,798
FCDO,CSC,29/09/2023,Scholar Allowances,Award Costs,Scholar,PIN065341,870
FCDO,CSC,29/09/2023,Scholar Allowances,Award Costs,Scholar,PIN065342,1728
FCDO,CSC,29/09/2023,Scholar Allowances,Award Costs,Scholar,PIN065343,870
FCDO,CSC,29/09/2023,Scholar Allowances,Award Costs,Scholar,PIN065344,1152
FCDO,CSC,29/09/2023,Scholar Allowances,Award Costs,Scholar,PIN065345,870
FCDO,CSC,29/09/2023,Scholar Allowances,Award Costs,Scholar,PIN065346,580
FCDO,CSC,29/09/2023,Scholar Allowances,Award Costs,Scholar,PIN065347,1299
FCDO,CSC,29/09/2023,Scholar Allowances,Award Costs,Scholar,PIN065348,1731
FCDO,CSC,29/09/2023,Scholar Allowances,Award Costs,Scholar,PIN065349,870
FCDO,CSC,29/09/2023,Scholar Allowances,Award Costs,Scholar,PIN065350,870
FCDO,CSC,29/09/2023,Scholar Allowances,Award Costs,Scholar,PIN065351,2160
FCDO,CSC,29/09/2023,Scholar Allowances,Award Costs,Scholar,PIN065352,1299
FCDO,CSC,29/09/2023,Scholar Allowances,Award Costs,Scholar,PIN065353,1731
FCDO,CSC,29/09/2023,Scholar Allowances,Award Costs,Scholar,PIN065354,1299
FCDO,CSC,29/09/2023,Scholar Allowances,Award Costs,Scholar,PIN065355,1728
FCDO,CSC,29/09/2023,Scholar Allowances,Award Costs,Scholar,PIN065356,1728
FCDO,CSC,29/09/2023,Scholar Allowances,Award Costs,Scholar,PIN065357,1299
FCDO,CSC,29/09/2023,Scholar Allowances,Award Costs,Scholar,PIN065358,870
FCDO,CSC,29/09/2023,Scholar Allowances,Award Costs,Scholar,PIN065359,2491.54
FCDO,CSC,29/09/2023,Scholar Allowances,Award Costs,Scholar,PIN065360,1299
FCDO,CSC,29/09/2023,Scholar Allowances,Award Costs,Scholar,PIN065361,1728
FCDO,CSC,29/09/2023,Scholar Allowances,Award Costs,Scholar,PIN065362,1299
FCDO,CSC,29/09/2023,Scholar Allowances,Award Costs,Scholar,PIN065363,1299
FCDO,CSC,29/09/2023,Scholar Allowances,Award Costs,Scholar,PIN065364,1728
FCDO,CSC,29/09/2023,Scholar Allowances,Award Costs,Scholar,PIN065365,1731
FCDO,CSC,29/09/2023,Scholar Allowances,Award Costs,Scholar,PIN065366,870
FCDO,CSC,29/09/2023,Scholar Allowances,Award Costs,Scholar,PIN065367,1728
FCDO,CSC,29/09/2023,Scholar Allowances,Award Costs,Scholar,PIN065368,1728
FCDO,CSC,29/09/2023,Scholar Allowances,Award Costs,Scholar,PIN065369,870
FCDO,CSC,29/09/2023,Scholar Allowances,Award Costs,Scholar,PIN065370,1299
FCDO,CSC,29/09/2023,Scholar Allowances,Award Costs,Scholar,PIN065371,870
FCDO,CSC,29/09/2023,Scholar Allowances,Award Costs,Scholar,PIN065372,1731
FCDO,CSC,29/09/2023,Scholar Allowances,Award Costs,Scholar,PIN065373,870
FCDO,CSC,29/09/2023,Scholar Allowances,Award Costs,Scholar,PIN065374,1299
FCDO,CSC,29/09/2023,Scholar Allowances,Award Costs,Scholar,PIN065375,1728
FCDO,CSC,29/09/2023,Scholar Allowances,Award Costs,Scholar,PIN065376,1299
FCDO,CSC,29/09/2023,Scholar Allowances,Award Costs,Scholar,PIN065377,870
FCDO,CSC,29/09/2023,Scholar Allowances,Award Costs,Scholar,PIN065378,870
FCDO,CSC,29/09/2023,Scholar Allowances,Award Costs,Scholar,PIN065379,1728
FCDO,CSC,29/09/2023,Scholar Allowances,Award Costs,Scholar,PIN065380,870
FCDO,CSC,29/09/2023,Scholar Allowances,Award Costs,Scholar,PIN065381,870
FCDO,CSC,29/09/2023,Scholar Allowances,Award Costs,Scholar,PIN065382,1731
FCDO,CSC,29/09/2023,Scholar Allowances,Award Costs,Scholar,PIN065383,870
FCDO,CSC,29/09/2023,Scholar Allowances,Award Costs,Scholar,PIN065384,1299
FCDO,CSC,29/09/2023,Scholar Allowances,Award Costs,Scholar,PIN065385,1299
FCDO,CSC,29/09/2023,Scholar Allowances,Award Costs,Scholar,PIN065386,870
FCDO,CSC,29/09/2023,Scholar Allowances,Award Costs,Scholar,PIN065387,1299
FCDO,CSC,29/09/2023,Scholar Allowances,Award Costs,Scholar,PIN065388,1728
FCDO,CSC,29/09/2023,Scholar Allowances,Award Costs,Scholar,PIN065389,870
FCDO,CSC,29/09/2023,Scholar Allowances,Award Costs,Scholar,PIN065390,1299
FCDO,CSC,29/09/2023,Scholar Allowances,Award Costs,Scholar,PIN065391,2160
FCDO,CSC,29/09/2023,Scholar Allowances,Award Costs,Scholar,PIN065392,1299
FCDO,CSC,29/09/2023,Scholar Allowances,Award Costs,Scholar,PIN065393,870
FCDO,CSC,29/09/2023,Scholar Allowances,Award Costs,Scholar,PIN065394,870
FCDO,CSC,29/09/2023,Scholar Allowances,Award Costs,Scholar,PIN065395,1728
FCDO,CSC,29/09/2023,Scholar Allowances,Award Costs,Scholar,PIN065396,1731
FCDO,CSC,29/09/2023,Scholar Allowances,Award Costs,Scholar,PIN065397,870
FCDO,CSC,29/09/2023,Scholar Allowances,Award Costs,Scholar,PIN065398,1299
FCDO,CSC,29/09/2023,Scholar Allowances,Award Costs,Scholar,PIN065399,1728
FCDO,CSC,29/09/2023,Scholar Allowances,Award Costs,Scholar,PIN065400,580
FCDO,CSC,29/09/2023,Scholar Allowances,Award Costs,Scholar,PIN065401,870
FCDO,CSC,29/09/2023,Scholar Allowances,Award Costs,Scholar,PIN065402,1299
FCDO,CSC,29/09/2023,Scholar Allowances,Award Costs,Scholar,PIN065403,1299
FCDO,CSC,29/09/2023,Scholar Allowances,Award Costs,Scholar,PIN065404,870
FCDO,CSC,29/09/2023,Scholar Allowances,Award Costs,Scholar,PIN065405,870
FCDO,CSC,29/09/2023,Scholar Allowances,Award Costs,Scholar,PIN065406,2160
FCDO,CSC,29/09/2023,Scholar Allowances,Award Costs,Scholar,PIN065407,1728
FCDO,CSC,29/09/2023,Scholar Allowances,Award Costs,Scholar,PIN065408,866
FCDO,CSC,29/09/2023,Scholar Allowances,Award Costs,Scholar,PIN065409,870
FCDO,CSC,29/09/2023,Scholar Allowances,Award Costs,Scholar,PIN065410,1731
FCDO,CSC,29/09/2023,Scholar Allowances,Award Costs,Scholar,PIN065411,1728
FCDO,CSC,29/09/2023,Scholar Allowances,Award Costs,Scholar,PIN065412,1299
FCDO,CSC,29/09/2023,Scholar Allowances,Award Costs,Scholar,PIN065413,1728
FCDO,CSC,29/09/2023,Scholar Allowances,Award Costs,Scholar,PIN065414,870
FCDO,CSC,29/09/2023,Scholar Allowances,Award Costs,Scholar,PIN065416,870
FCDO,CSC,29/09/2023,Scholar Allowances,Award Costs,Scholar,PIN065417,1728
FCDO,CSC,29/09/2023,Scholar Allowances,Award Costs,Scholar,PIN065418,870
FCDO,CSC,29/09/2023,Scholar Allowances,Award Costs,Scholar,PIN065419,870
FCDO,CSC,29/09/2023,Scholar Allowances,Award Costs,Scholar,PIN065420,870
FCDO,CSC,29/09/2023,Scholar Allowances,Award Costs,Scholar,PIN065421,870
FCDO,CSC,29/09/2023,Scholar Allowances,Award Costs,Scholar,PIN065422,870
FCDO,CSC,29/09/2023,Scholar Allowances,Award Costs,Scholar,PIN065423,870
FCDO,CSC,29/09/2023,Scholar Allowances,Award Costs,Scholar,PIN065424,870
FCDO,CSC,29/09/2023,Scholar Allowances,Award Costs,Scholar,PIN065425,870
FCDO,CSC,29/09/2023,Scholar Allowances,Award Costs,Scholar,PIN065426,870
FCDO,CSC,29/09/2023,Scholar Allowances,Award Costs,Scholar,PIN065427,798
FCDO,CSC,29/09/2023,Scholar Allowances,Award Costs,Scholar,PIN065428,870
FCDO,CSC,29/09/2023,Scholar Allowances,Award Costs,Scholar,PIN065429,870
FCDO,CSC,29/09/2023,Scholar Allowances,Award Costs,Scholar,PIN065430,870
FCDO,CSC,29/09/2023,Scholar Allowances,Award Costs,Scholar,PIN065431,580
FCDO,CSC,29/09/2023,Scholar Allowances,Award Costs,Scholar,PIN065432,870
FCDO,CSC,29/09/2023,Scholar Allowances,Award Costs,Scholar,PIN065433,580
FCDO,CSC,29/09/2023,Scholar Allowances,Award Costs,Scholar,PIN065434,870
FCDO,CSC,29/09/2023,Scholar Allowances,Award Costs,Scholar,PIN065435,870
FCDO,CSC,29/09/2023,Scholar Allowances,Award Costs,Scholar,PIN065436,870
FCDO,CSC,29/09/2023,Scholar Allowances,Award Costs,Scholar,PIN065437,870
FCDO,CSC,29/09/2023,Scholar Allowances,Award Costs,Scholar,PIN065438,870
FCDO,CSC,29/09/2023,Scholar Allowances,Award Costs,Scholar,PIN065439,870
FCDO,CSC,29/09/2023,Scholar Allowances,Award Costs,Scholar,PIN065440,870
FCDO,CSC,29/09/2023,Scholar Allowances,Award Costs,Scholar,PIN065441,870
FCDO,CSC,29/09/2023,Scholar Allowances,Award Costs,Scholar,PIN065442,870
FCDO,CSC,29/09/2023,Scholar Allowances,Award Costs,Scholar,PIN065443,870
FCDO,CSC,29/09/2023,Scholar Allowances,Award Costs,Scholar,PIN065444,870
FCDO,CSC,29/09/2023,Scholar Allowances,Award Costs,Scholar,PIN065445,870
FCDO,CSC,29/09/2023,Scholar Allowances,Award Costs,Scholar,PIN065446,870
FCDO,CSC,29/09/2023,Scholar Allowances,Award Costs,Scholar,PIN065447,870
FCDO,CSC,29/09/2023,Scholar Allowances,Award Costs,Scholar,PIN065448,870
FCDO,CSC,29/09/2023,Scholar Allowances,Award Costs,Scholar,PIN065449,870
FCDO,CSC,29/09/2023,Scholar Allowances,Award Costs,Scholar,PIN065450,870
FCDO,CSC,29/09/2023,Scholar Allowances,Award Costs,Scholar,PIN065451,870
FCDO,CSC,29/09/2023,Scholar Allowances,Award Costs,Scholar,PIN065452,870
FCDO,CSC,29/09/2023,Scholar Allowances,Award Costs,Scholar,PIN065453,870
FCDO,CSC,29/09/2023,Scholar Allowances,Award Costs,Scholar,PIN065454,870
FCDO,CSC,29/09/2023,Scholar Allowances,Award Costs,Scholar,PIN065455,870
FCDO,CSC,29/09/2023,Scholar Allowances,Award Costs,Scholar,PIN065456,870
FCDO,CSC,29/09/2023,Scholar Allowances,Award Costs,Scholar,PIN065457,870
FCDO,CSC,29/09/2023,Scholar Allowances,Award Costs,Scholar,PIN065458,870
FCDO,CSC,29/09/2023,Scholar Allowances,Award Costs,Scholar,PIN065459,870
FCDO,CSC,29/09/2023,Scholar Allowances,Award Costs,Scholar,PIN065460,870
FCDO,CSC,29/09/2023,Scholar Allowances,Award Costs,Scholar,PIN065461,870
FCDO,CSC,29/09/2023,Scholar Allowances,Award Costs,Scholar,PIN065462,870
FCDO,CSC,29/09/2023,Scholar Allowances,Award Costs,Scholar,PIN065463,870
FCDO,CSC,29/09/2023,Scholar Allowances,Award Costs,Scholar,PIN065464,870
FCDO,CSC,29/09/2023,Scholar Allowances,Award Costs,Scholar,PIN065465,870
FCDO,CSC,29/09/2023,Scholar Allowances,Award Costs,Scholar,PIN065466,870
FCDO,CSC,29/09/2023,Scholar Allowances,Award Costs,Scholar,PIN065467,870
FCDO,CSC,29/09/2023,Scholar Allowances,Award Costs,Scholar,PIN065468,870
FCDO,CSC,29/09/2023,Scholar Allowances,Award Costs,Scholar,PIN065469,870
FCDO,CSC,29/09/2023,Scholar Allowances,Award Costs,Scholar,PIN065470,870
FCDO,CSC,29/09/2023,Scholar Allowances,Award Costs,Scholar,PIN065471,870
FCDO,CSC,29/09/2023,Scholar Allowances,Award Costs,Scholar,PIN065472,870
FCDO,CSC,29/09/2023,Scholar Allowances,Award Costs,Scholar,PIN065473,870
FCDO,CSC,29/09/2023,Scholar Allowances,Award Costs,Scholar,PIN065474,580
FCDO,CSC,29/09/2023,Scholar Allowances,Award Costs,Scholar,PIN065475,870
FCDO,CSC,29/09/2023,Scholar Allowances,Award Costs,Scholar,PIN065476,870
FCDO,CSC,29/09/2023,Scholar Allowances,Award Costs,Scholar,PIN065477,870
FCDO,CSC,29/09/2023,Scholar Allowances,Award Costs,Scholar,PIN065478,870
FCDO,CSC,29/09/2023,Scholar Allowances,Award Costs,Scholar,PIN065479,870
FCDO,CSC,29/09/2023,Scholar Allowances,Award Costs,Scholar,PIN065480,580
FCDO,CSC,29/09/2023,Scholar Allowances,Award Costs,Scholar,PIN065481,870
FCDO,CSC,29/09/2023,Scholar Allowances,Award Costs,Scholar,PIN065482,870
FCDO,CSC,29/09/2023,Scholar Allowances,Award Costs,Scholar,PIN065483,646.69
FCDO,CSC,29/09/2023,Scholar Allowances,Award Costs,Scholar,PIN065484,870
FCDO,CSC,29/09/2023,Scholar Allowances,Award Costs,Scholar,PIN065485,870
FCDO,CSC,29/09/2023,Scholar Allowances,Award Costs,Scholar,PIN065486,870
FCDO,CSC,29/09/2023,Scholar Allowances,Award Costs,Scholar,PIN065489,1122.5
FCDO,CSC,29/09/2023,Scholar Allowances,Award Costs,Scholar,PIN065490,1500
FCDO,CSC,29/09/2023,Scholar Allowances,Award Costs,Scholar,PIN065491,1940
FCDO,CSC,29/09/2023,Scholar Allowances,Award Costs,Scholar,PIN065493,1500
FCDO,CSC,29/09/2023,Scholar Allowances,Award Costs,Scholar,PIN065494,1940
FCDO,CSC,29/09/2023,Tuition Fee,Award Costs,The University of Nottingham,PIN065501,22500
FCDO,CSC,29/09/2023,Tuition Fee,Award Costs,The University of Nottingham,PIN065502,2828.33
FCDO,CSC,29/09/2023,Tuition Fee,Award Costs,The University of Nottingham,PIN065504,9000
FCDO,CSC,29/09/2023,Tuition Fee,Award Costs,University of Strathclyde,PIN065505,4900
FCDO,CSC,29/09/2023,Tuition Fee,Award Costs,University of Strathclyde,PIN065506,4900
FCDO,CSC,29/09/2023,Scholar Allowances,Award Costs,University of Glasgow,PIN065507,1800
FCDO,CSC,29/09/2023,Scholar Allowances,Award Costs,University of Glasgow,PIN065507,1600
FCDO,CSC,29/09/2023,Award Support Costs,Award Costs,Liverpool John Moores University,PIN065508,5000
FCDO,CSC,29/09/2023,Award Support Costs,Award Costs,University of Strathclyde,PIN065510,1974.22
FCDO,CSC,29/09/2023,Tuition Fee,Award Costs,University of Strathclyde,PIN065511,18000
FCDO,CSC,29/09/2023,Award Support Costs,Award Costs,University of Strathclyde,PIN065513,13920
FCDO,CSC,29/09/2023,Tuition Fee,Award Costs,University of Strathclyde,PIN065515,12840
FCDO,CSC,29/09/2023,Tuition Fee,Award Costs,University of Glasgow,PIN065516,4166.67
FCDO,CSC,29/09/2023,Tuition Fee,Award Costs,University of Glasgow,PIN065517,2916.17
FCDO,CSC,29/09/2023,Alumni Engagement,Programme Costs,Pau Creative Ltd.,PIN065520,1302
FCDO,CSC,29/09/2023,Interview Costs,Programme Costs,Way With Words Group,PIN065521,1919.9
FCDO,CSC,29/09/2023,Tuition Fee,Award Costs,University of Dundee,PIN065523,2025
FCDO,CSC,29/09/2023,Tuition Fee,Award Costs,University of Dundee,PIN065524,2025
FCDO,CSC,29/09/2023,Tuition Fee,Award Costs,University of Strathclyde,PIN065525,7484
FCDO,CSC,29/09/2023,Scholar Travel,Award Costs,University of Stirling,PIN065526,625.91
FCDO,CSC,29/09/2023,Tuition Fee,Award Costs,University of Newcastle upon Tyne,PIN065529,5314.29
FCDO,CSC,29/09/2023,Tuition Fee,Award Costs,University of Strathclyde,PIN065530,18000
FCDO,CSC,29/09/2023,Tuition Fee,Award Costs,University of Glasgow,PIN065531,22140
FCDO,CSC,29/09/2023,Tuition Fee,Award Costs,University of Glasgow,PIN065532,22500
FCDO,CSC,29/09/2023,Tuition Fee,Award Costs,The University of Birmingham,PIN065533,7500
FCDO,CSC,29/09/2023,Tuition Fee,Award Costs,The Cambridge Commonwealth Trust,PIN065534,23000
FCDO,CSC,29/09/2023,Tuition Fee,Award Costs,The Cambridge Commonwealth Trust,PIN065535,23000
FCDO,CSC,29/09/2023,Tuition Fee,Award Costs,The Cambridge Commonwealth Trust,PIN065536,8957
FCDO,CSC,29/09/2023,Award Support Costs,Award Costs,University of Bristol,PIN065537,5000
FCDO,CSC,29/09/2023,Tuition Fee,Award Costs,University of Strathclyde,PIN065538,7484
FCDO,CSC,29/09/2023,Tuition Fee,Award Costs,University of Southampton,PIN065539,18000
FCDO,CSC,29/09/2023,Tuition Fee,Award Costs,University of Glasgow,PIN065540,11176.66
FCDO,CSC,29/09/2023,Tuition Fee,Award Costs,University of Newcastle upon Tyne,PIN065541,16800
FCDO,CSC,29/09/2023,Tuition Fee,Award Costs,University of Strathclyde,PIN065542,18000
FCDO,CSC,29/09/2023,Scholar Engagement,Programme Costs,Pau Creative Ltd.,PIN065543,1920
FCDO,CSC,29/09/2023,Consulting Fees,System Development,Scholar,PIN065544,1950
FCDO,CSC,29/09/2023,Secretariat Service Provision,Programme Costs,Disability Rights UK,PIN065545,900
FCDO,CSC,29/09/2023,Scholar Travel,Award Costs,Diversity Travel,PIN065550,2203.35
FCDO,CSC,29/09/2023,Scholar Travel,Award Costs,Diversity Travel,PIN065550,2098.66
FCDO,CSC,29/09/2023,Fieldwork Airfare,Award Costs,Diversity Travel,PIN065550,1948.94
FCDO,CSC,29/09/2023,Fieldwork Airfare,Award Costs,Diversity Travel,PIN065550,1780.28
FCDO,CSC,29/09/2023,Scholar Travel,Award Costs,Diversity Travel,PIN065550,1426.92
FCDO,CSC,29/09/2023,Scholar Travel,Award Costs,Diversity Travel,PIN065550,1395.91
FCDO,CSC,29/09/2023,Scholar Travel,Award Costs,Diversity Travel,PIN065550,1219.87
FCDO,CSC,29/09/2023,Scholar Travel,Award Costs,Diversity Travel,PIN065550,1164.06
FCDO,CSC,29/09/2023,Scholar Travel,Award Costs,Diversity Travel,PIN065550,1062.31
FCDO,CSC,29/09/2023,Scholar Travel,Award Costs,Diversity Travel,PIN065550,1040.77
FCDO,CSC,29/09/2023,Scholar Travel,Award Costs,Diversity Travel,PIN065550,1032.66
FCDO,CSC,29/09/2023,Scholar Travel,Award Costs,Diversity Travel,PIN065550,992.2
FCDO,CSC,29/09/2023,Scholar Travel,Award Costs,Diversity Travel,PIN065550,990.61
FCDO,CSC,29/09/2023,Scholar Travel,Award Costs,Diversity Travel,PIN065550,942.11
FCDO,CSC,29/09/2023,Scholar Travel,Award Costs,Diversity Travel,PIN065550,923.94
FCDO,CSC,29/09/2023,Scholar Travel,Award Costs,Diversity Travel,PIN065550,902.3
FCDO,CSC,29/09/2023,Scholar Travel,Award Costs,Diversity Travel,PIN065550,898.11
FCDO,CSC,29/09/2023,Scholar Travel,Award Costs,Diversity Travel,PIN065550,898.09
FCDO,CSC,29/09/2023,Scholar Travel,Award Costs,Diversity Travel,PIN065550,897.71
FCDO,CSC,29/09/2023,Scholar Travel,Award Costs,Diversity Travel,PIN065550,894.23
FCDO,CSC,29/09/2023,Scholar Travel,Award Costs,Diversity Travel,PIN065550,892.28
FCDO,CSC,29/09/2023,Scholar Travel,Award Costs,Diversity Travel,PIN065550,890.09
FCDO,CSC,29/09/2023,Scholar Travel,Award Costs,Diversity Travel,PIN065550,889.9
FCDO,CSC,29/09/2023,Scholar Travel,Award Costs,Diversity Travel,PIN065550,883.45
FCDO,CSC,29/09/2023,Scholar Travel,Award Costs,Diversity Travel,PIN065550,881.17
FCDO,CSC,29/09/2023,Scholar Travel,Award Costs,Diversity Travel,PIN065550,873.57
FCDO,CSC,29/09/2023,Scholar Travel,Award Costs,Diversity Travel,PIN065550,871.89
FCDO,CSC,29/09/2023,Scholar Travel,Award Costs,Diversity Travel,PIN065550,848.75
FCDO,CSC,29/09/2023,Scholar Travel,Award Costs,Diversity Travel,PIN065550,844.13
FCDO,CSC,29/09/2023,Scholar Travel,Award Costs,Diversity Travel,PIN065550,840.19
FCDO,CSC,29/09/2023,Scholar Travel,Award Costs,Diversity Travel,PIN065550,835.36
FCDO,CSC,29/09/2023,Scholar Travel,Award Costs,Diversity Travel,PIN065550,834.64
FCDO,CSC,29/09/2023,Scholar Travel,Award Costs,Diversity Travel,PIN065550,833.76
FCDO,CSC,29/09/2023,Scholar Travel,Award Costs,Diversity Travel,PIN065550,812.8
FCDO,CSC,29/09/2023,Scholar Travel,Award Costs,Diversity Travel,PIN065550,791.49
FCDO,CSC,29/09/2023,Scholar Travel,Award Costs,Diversity Travel,PIN065550,790.43
FCDO,CSC,29/09/2023,Scholar Travel,Award Costs,Diversity Travel,PIN065550,777.08
FCDO,CSC,29/09/2023,Scholar Travel,Award Costs,Diversity Travel,PIN065550,770.3
FCDO,CSC,29/09/2023,Scholar Travel,Award Costs,Diversity Travel,PIN065550,766.61
FCDO,CSC,29/09/2023,Scholar Travel,Award Costs,Diversity Travel,PIN065550,701.99
FCDO,CSC,29/09/2023,Scholar Travel,Award Costs,Diversity Travel,PIN065550,689.83
FCDO,CSC,29/09/2023,Scholar Travel,Award Costs,Diversity Travel,PIN065550,688.51
FCDO,CSC,29/09/2023,Scholar Travel,Award Costs,Diversity Travel,PIN065550,677.11
FCDO,CSC,29/09/2023,Scholar Travel,Award Costs,Diversity Travel,PIN065550,120.01
FCDO,CSC,29/09/2023,Scholar Travel,Award Costs,Diversity Travel,PIN065550,59
FCDO,CSC,29/09/2023,Scholar Travel,Award Costs,Diversity Travel,PIN065550,56.2
FCDO,CSC,29/09/2023,Scholar Travel,Award Costs,Diversity Travel,PIN065550,55
FCDO,CSC,29/09/2023,Scholar Travel,Award Costs,Diversity Travel,PIN065550,52
FCDO,CSC,29/09/2023,Scholar Travel,Award Costs,Diversity Travel,PIN065550,50.8
FCDO,CSC,29/09/2023,Scholar Travel,Award Costs,Diversity Travel,PIN065550,47.84
FCDO,CSC,29/09/2023,Scholar Travel,Award Costs,Diversity Travel,PIN065550,45
FCDO,CSC,29/09/2023,Scholar Travel,Award Costs,Diversity Travel,PIN065550,34
FCDO,CSC,29/09/2023,Scholar Travel,Award Costs,Diversity Travel,PIN065550,23.7
FCDO,CSC,29/09/2023,Postage & Courier,Programme Costs,DHL International (UK) Limited,PIN065558,2151.22
